Cogmind - Beta 15 @@@ ROGUE MODE // 2025.09.25 @ 19:37:29 Player: Gruff Result: Destroyed by Z8-SJI(R) with Subdweller Machine Gun Performance ------------- Evolutions (0) 0 Regions Visited (2) 400 Robots Destroyed (19) 95 Value Destroyed (520) 520 Prototype IDs (0) 0 Alien Tech Used (0) 0 Bonus (0) 0 TOTAL SCORE: 1015 Bonus ------- None Cogmind --------- Core Integrity 0/250 Matter 95/300 Energy 98/100 System Corruption 3% Temperature Cool (0) Movement Core (50) Location -10/Subcaves Parts ------- > --- POWER (1) -------- (None) > --- PROPULSION (2) --- (None) > --- UTILITY (2) ------ (None) > --- WEAPON (2) ------- Makeshift Sword > --- INVENTORY (5) ---- Ion Engine Improved Aluminum Leg Improved Heat Sink Sensor Array Grenade Launcher Peak State ------------ > --- POWER ------------ Ion Engine > --- PROPULSION ------- Improved Aluminum Leg Improved Aluminum Leg > --- UTILITY ---------- Scrap Shield > --- WEAPON ----------- Light Cannon Makeshift Sword > --- INVENTORY -------- Ion Engine Improved Aluminum Leg Improved Heat Sink Sensor Array Grenade Launcher [Rating: 14] Favorites ----------- Power Ion Engine Engine Ion Engine Propulsion Improved Aluminum Leg Treads Light Treads Leg Improved Aluminum Leg Utility Signal Interpreter Device Improved Terrain Scanner Storage Small Storage Unit Processor Signal Interpreter Hackware Hacking Suite Protection Scrap Shield Weapon Light Cannon Energy Gun Small Laser Ballistic Gun Assault Rifle Ballistic Cannon Light Cannon Launcher Grenade Launcher Slashing Weapon Makeshift Sword Build | -11 -10 -10 ------- Run | Yrd Mat Sub Slots Evolved . | . . . Power . | . . . Propulsion . | . . . Utility . | . . . Weapon . | . . . Parts Attached 23 | 8 13 2 Power 2 | 1 1 . Engine 2 | 1 1 . Core . | . . . Reactor . | . . . Propulsion 6 | 2 4 . Treads 2 | 2 . . Leg 4 | . 4 . Wheel . | . . . Hover . | . . . Flight . | . . . Utility 7 | 3 3 1 Device 3 | 2 1 . Storage 1 | 1 . . Processor 1 | . 1 . Hackware 1 | . 1 . Protection 1 | . . 1 Artifact . | . . . Weapon 8 | 2 5 1 Energy Gun 1 | 1 . . Energy Cannon . | . . . Ballistic Gun 2 | 1 1 . Ballistic Cannon 3 | . 3 . Launcher 1 | . 1 . Special Weapon . | . . . Impact Weapon . | . . . Slashing Weapon 1 | . . 1 Piercing Weapon . | . . . Special Melee Weapon . | . . . Unidentified Prototypes . | . . . Parts Lost 6 | . 1 5 Power 1 | . . 1 Propulsion 2 | . . 2 Utility 2 | . . 2 Weapon 1 | . 1 . Highest Loss Streak 4 | . 1 4 To Critical Strikes . | . . . Average Backups 4 | 1 4 5 Power . | . . 1 Propulsion 1 | 1 1 1 Utility 1 | . 1 2 Weapon . | . 1 1 Tool/Special . | . . . Unused Backups 8 | . 6 2 Power . | . . . Propulsion 4 | . 3 1 Utility 3 | . 2 1 Weapon 1 | . 1 . Tool/Special . | . . . Average Slot Usage (%) 96 | . 98 93 Engine 14 | . 14 14 Treads 1 | . 2 . Leg 26 | . 25 28 Device 8 | . 14 . Processor 8 | . 7 10 Hackware 6 | . 5 8 Protection 1 | . . 3 Ballistic Gun 4 | . 6 . Ballistic Cannon 20 | . 19 22 Launcher 1 | . . 4 Peak Build Rating 14 | 9 11 14 Average Rating 10 | 5 10 10 On Entrance 6 | . 9 11 Naked Turns . | . . . Heaviest Build 29 | 14 13 29 Greatest Support 40 | 40 40 26 Greatest Overweight (x) 2 | . . 2 Average Overweight (x) . | . . . Largest Inventory Capacity 8 | 8 5 5 Average Capacity 5 | 6 5 5 Most Carried 5 | 2 5 5 Average Carried 4 | 1 4 5 Final Capacity 5 | 5 5 5 Final Carried 5 | 2 5 5 Class Distribution -------------------- 100% | Mutant Dominant Class ---------------- Mutant | -10/Materials Mutant | -10/Subcaves Resources | -11 -10 -10 ----------- Run | Yrd Mat Sub Matter Collected 860 | 223 523 114 Remotely . | . . . Salvage Created 655 | 109 475 71 Parts 35 | 9 19 7 Haulers Intercepted 1 | . 1 . Recyclers Shooed 1 | . 1 . Parts Field Recycled . | . . . Retrieved Matter . | . . . Parts Self-Destructed . | . . . Prevented . | . . . Kills | -11 -10 -10 ------- Run | Yrd Mat Sub Combat Hostiles Destroyed 11 | . 7 4 Melee 1 | . . 1 Guns 5 | . 5 . Cannons 2 | . 2 . AOE 3 | . . 3 Classes Destroyed 7 | 2 4 1 Tunneler 2 | 2 . . Hauler 1 | . 1 . Recycler 2 | 1 1 . Operator 2 | . 2 . Watcher 1 | . 1 . Grunt 7 | . 7 . Subdweller 4 | . . 4 Best Kill Streak 3 | 1 3 2 Combat Bots Only 3 | . 3 2 Max Kills in Single Turn 2 | 1 1 2 Gunslinging . | . . . Exploded 2 | . . 2 Melee 1 | . . 1 Uniques/NPCs Destroyed . | . . . Combat | -11 -10 -10 -------- Run | Yrd Mat Sub Hostile Shots Fired 101 | . 66 35 Missed 37 | . 26 11 Hits 64 | . 40 24 Projectile 64 | . 40 24 Damage Taken 1228 | . 483 745 Core 253 | . 95 158 Absorbed by Shields . | . . . Core Remaining (%) 100 | 100 . . Volleys Fired 111 | 12 75 24 Largest 2 | 2 2 2 Hottest 60 | 60 60 60 Shots Fired 196 | 24 133 39 Gun 99 | 24 75 . Cannon 87 | . 57 30 Launcher 10 | . 1 9 Special . | . . . Kinetic 172 | 12 130 30 Thermal 14 | 12 2 . Explosive 10 | . 1 9 Electromagnetic . | . . . Robot Hit Streak 6 | 2 6 6 Robot Miss Streak 5 | 2 5 2 Penetration Max . | . . . Secondary Targets 2 | . 2 . Max Gunslinging Chain 1 | . 1 . Shots Hit Robots 86 | 12 61 13 Core Hits 36 | 4 24 8 Critical Kills . | . . . Critical Parts Destroyed . | . . . Critical Strikes 2 | . 2 . Blast 2 | . 2 . Melee Attacks 7 | . . 7 Impact . | . . . Slashing 7 | . . 7 Piercing . | . . . Sneak Attacks . | . . . Combat Hostiles . | . . . Follow-up Attacks . | . . . Damage Inflicted 1403 | 131 761 511 Guns 634 | 131 503 . Cannons 246 | . 192 54 Explosions 407 | . 64 343 Melee 114 | . . 114 Ramming 2 | . 2 . Kinetic 796 | 58 684 54 Thermal 84 | 73 11 . Explosive 407 | . 64 343 Electromagnetic . | . . . Impact . | . . . Slashing 114 | . . 114 Piercing . | . . . Highest Corruption 3 | . 1 3 Average Corruption 1 | . 1 1 Corruption Purged . | . . . Corruption Blocked . | . . . Effects 12 | . 8 4 Message Errors 2 | . . 2 Matter Fused 2 | . 1 1 Heat Flow Errors 2 | . 2 . Energy Discharges 3 | . 2 1 Misfires 2 | . 2 . Weapon Failures 1 | . 1 . Overload Shots . | . . . Overflow Damage 4 | . 4 . Projectiles . | . . . Explosions 4 | . 4 . Melee . | . . . Knockbacks 5 | . 3 2 Impact . | . . . Kinetic 5 | . 3 2 Secondary . | . . . Self-Inflicted Damage 15 | . . 15 Shots 1 | . . 1 Rammed . | . . . Targets Rammed 2 | . 2 . Kicked 2 | . 2 . Crushed . | . . . Highest Temperature 278 | . 278 . Average Temperature 45 | . 45 . Received Heat Transfer 288 | . 240 48 Siege Activations . | . . . Martial Activations . | . . . Shielding Activations . | . . . Robots Disrupted . | . . . Combat Hostiles . | . . . Robots Corrupted . | . . . Combat Hostiles . | . . . Parts Fried . | . . . Impact Corruptions . | . . . Robots Melted . | . . . Combat Hostiles . | . . . Parts Melted . | . . . Heat Transferred 200 | 175 25 . Parts Sabotaged . | . . . Parts Stolen . | . . . Parts Stripped . | . . . Power Chain Reactions . | . . . Alert | -11 -10 -10 ------- Run | Yrd Mat Sub Maximum Alert Level . | . . . Low Security (%) 100 | 100 100 . Level 1 . | . . . Level 2 . | . . . Level 3 . | . . . Level 4 . | . . . Level 5 . | . . . High Security . | . . . Max Security . | . . . Peak Influence 70 | 5 70 . Initial . | . . . Average 15 | . 17 . Influence Increases 253 | 15 238 . Destroy 0b10 Robot/C 140 | . 140 . Destroy 0b10 Robot/NC 40 | 15 25 . Destroy Leader 34 | . 34 . Disable Machine 30 | . 30 . Destroy Structure 9 | . 9 . Influence Decreases 253 | 15 238 . Time Decay 243 | 15 228 . Lost Part 10 | . 10 . Squads Dispatched 1 | . 1 . Investigation 1 | . 1 . Extermination . | . . . Reinforcement . | . . . Assault . | . . . Garrison . | . . . Intercept . | . . . Searches Triggered . | . . . Construction Impeded . | . . . Haulers Reinforced . | . . . Active Scanning Responses . | . . . Cargo Convoy Interrupts . | . . . Stealth | -11 -10 -10 --------- Run | Yrd Mat Sub Distress Signals . | . . . Communications Jammed . | . . . Distress Signals . | . . . Times Spotted 23 | . 18 5 Peak Tracking Total 4 | . 4 2 Tactical Retreats . | . . . Traps | -11 -10 -10 ------- Run | Yrd Mat Sub Traps Triggered . | . . . Indirectly . | . . . Trap Hack Attempts . | . . . Triggered . | . . . Disarmed . | . . . Reprogrammed . | . . . Reused . | . . . Traps Extracted . | . . . Installed . | . . . Triggered . | . . . Machines | -11 -10 -10 ---------- Run | Yrd Mat Sub Machines Disabled 2 | . 2 . Max in Single Turn 1 | . 1 . Machines Repaired . | . . . Machines Dismantled . | . . . Machines Sabotaged . | . . . Overloaded Fab Kills . | . . . Hacking | -11 -10 -10 --------- Run | Yrd Mat Sub Machines Accessed 6 | . 5 1 Terminals 4 | . 4 . Fabricators . | . . . Repair Stations . | . . . Recycling Units 1 | . 1 . Scanalyzers . | . . . Garrison Access . | . . . Total Hacks 13 | . 8 5 Successful 9 | . 4 5 Failed 4 | . 4 . Catastrophic 1 | . 1 . Database Lockouts . | . . . Manual 7 | . 7 . Terminals 7 | . 7 . Fabricators . | . . . Repair Stations . | . . . Recycling Units 1 | . 1 . Scanalyzers . | . . . Garrison Access . | . . . Terminal Hacks 5 | . . 5 Record 5 | . . 5 Fabricator Hacks . | . . . Repair Station Hacks . | . . . Recycling Unit Hacks 1 | . 1 . Report Inventory 1 | . 1 . Scanalyzer . | . . . Garrison Access Hacks . | . . . Unauthorized Hacks 3 | . 3 . Terminals 3 | . 3 . Skim 3 | . 3 . Fabricators . | . . . Repair Stations . | . . . Recycling Units . | . . . Scanalyzers . | . . . Garrison Access . | . . . Data Cores Recovered 1 | . 1 . Used . | . . . Hacking Detections 3 | . 3 . Full Trace Events 1 | . 1 . Feedback Events 1 | . 1 . Corruption 1 | . 1 . Feedback Blocked . | . . . Robot Schematics Acquired . | . . . Robots Built . | . . . Authchips . | . . . Time . | . . . Total Robot Build Rating . | . . . Part Schematics Acquired . | . . . Parts Built . | . . . Authchips . | . . . Time . | . . . Total Part Build Rating . | . . . Parts Repaired . | . . . Time . | . . . Parts Recycled . | . . . Recycled Matter . | . . . Retrieved Matter . | . . . Retrieved Components . | . . . Parts Scanalyzed . | . . . Part Schematics Acquired . | . . . Parts Damaged . | . . . Bothacking | -11 -10 -10 ------------ Run | Yrd Mat Sub Used RIF Installer . | . . . Robots Hacked . | . . . Non-combat . | . . . Combat . | . . . Robot Hacks Applied . | . . . Relay Couplers Released . | . . . Fabnet Peak Effective % . | . . . Robots Rewired . | . . . Allies Hacked . | . . . Hacks Repelled . | . . . Allies | -11 -10 -10 -------- Run | Yrd Mat Sub Total Allies . | . . . Largest Group . | . . . Highest-Rated Group . | . . . Highest-Rated Ally . | . . . Total Orders . | . . . Ally Attacks . | . . . Total Damage . | . . . Kills . | . . . Allies Corrupted . | . . . Allies Melted . | . . . Intel | -11 -10 -10 ------- Run | Yrd Mat Sub Active Infowar (turns) 572 | 31 541 . Sensors 128 | . 128 . Terrain 449 | 31 418 . Seismic 438 | 26 412 . Robot Analysis Total . | . . . Derelict Logs Recovered 1 | . . 1 Drone Launches . | . . . Drone Recoveries . | . . . Exploration | -11 -10 -10 ------------- Run | Yrd Mat Sub Turns Passed 1688 | 175 927 586 Spaces Moved 949 | 79 496 374 Core 7 | 2 . 5 Treads 113 | 77 36 . Legs 829 | . 460 369 Wheels . | . . . Hover . | . . . Flight . | . . . Fastest Speed 50 | 50 120 50 Average Speed 128 | 157 122 129 Slowest Speed 190 | 160 160 190 Overloaded Moves . | . . . Propulsion Burnouts . | . . . Robots Hopped . | . . . Potential Cave-ins . | . . . Cave-ins Triggered 1 | . . 1 Exploration Rate (%) 21 | 6 37 20 Regions Visited 2 Branch Regions 1 Pre-discovered Areas . | . . . Known Exits Taken 1 | . 1 . Unknown Exits Taken 1 | 1 . . Scrap Searched . | . . . Spaces Dug 6 | . . 6 Terrain Destroyed 76 | . 7 69 Melee . | . . . Projectile . | . . . AOE 76 | . 7 69 Terrain Rammed . | . . . Walls Destroyed . | . . . Machines Disabled . | . . . Actions | -11 -10 -10 --------- Run | Yrd Mat Sub Total 1223 | 102 692 429 Wait 101 | 2 81 18 Move 947 | 78 495 374 Hop . | . . . Pick Up 14 | 2 12 . Fast Attach 10 | 7 2 1 Attach 1 | . 1 . Detach . | . . . Swap 16 | 1 12 3 Drop 14 | . 12 2 Fire 111 | 12 75 24 Melee 7 | . . 7 Ram . | . . . Kick 2 | . 2 . Crush . | . . . Escape Stasis . | . . . Rewire . | . . . Trap . | . . . Miscellaneous . | . . . Route ------- -11/Scrapyard -10/Materials (discovered 2 exits: *Min / *Sub) -10/Subcaves (discovered 1 exit: [*Mat]) History --------- Turn | Location | Event 23 | -11/Scrapyard | Discovered new exit (range 16) 176 | -11/Scrapyard | Entered Materials 335 | -10/Materials | Build established: Mutant 393 | -10/Materials | Discovered new exit (range 15) 763 | -10/Materials | Identified exit to Mines 834 | -10/Materials | Discovered new exit (range 10) 876 | -10/Materials | Derelicts attacked the area 1102 | -10/Materials | Identified exit to Subcaves 1103 | -10/Materials | Entered Subcaves 1104 | -10/Subcaves | Approached by a straggling Scientist 1105 | -10/Subcaves | A swath of the cavern ceiling suddenly collapsed 1119 | -10/Subcaves | Learned 2 Materials zone layouts 1138 | -10/Subcaves | Visited Clippyterm 1141 | -10/Subcaves | Learned Research security intel 1141 | -10/Subcaves | Learned Factory stockpile data 1331 | -10/Subcaves | Ambushed by Subdweller buried in earth 1448 | -10/Subcaves | Crushed by falling debris 1448 | -10/Subcaves | Core integrity fell below 50% 1626 | -10/Subcaves | Shifting Twisted Machinery released Sub. Beam Cannon 1630 | -10/Subcaves | Shifting Twisted Machinery released Mak. Sword 1662 | -10/Subcaves | Discovered new exit (range 11) 1684 | -10/Subcaves | Core integrity fell below 20% 1689 | -10/Subcaves | Destroyed by Z8-SJI(R) with Subdweller Machine Gun Last Messages --------------- System corrupted: Matter fused (-8). 3C-SZN(c): "I think it's somewhere east of here" I ODI|LGS,GK|2FPT1Y58IYX:NPV< D7=K System corrupted: Energy discharge (-100). Discarded Signal Interpreter. Acquired Scrap Shield. 3C-SZN(c): "I think it's somewhere northeast of here" Sub. Beam Cannon falls loose from the Twisted Machinery. Mak. Sword falls loose from the Twisted Machinery. UN-8VP(R) knocked back. EXIT=FOUND 3C-SZN(c): "I think it's somewhere north of here" Acquired Mak. Sword. Dropped Lgt. Cannon. Acquired 4 matter. Scrap Shield destroyed. Imp. Aluminum Leg destroyed. Ion Engine destroyed. UN-8VP(R) destroyed. Acquired 18 matter. Map ----- +----------------------------------------------------+ | ?????????????????????????????????????????????????? | | ?????????????????????????????????????????????????? | | ?????????????????????????????????????????????????? | | ?????????????????????????????????????????????????? | | ?????????????????????????????????????????????????? | | ?????????????????????????????????????????????????? | | ??????????????????????? ?????????????????????????? | | #????????????????????# ?????????????????????????? | | #????????????????????